fUST/lending_fUST_20240927
["ID","MTS","AMOUNT","RATE_DAILY","PERIOD"]
[339266998,1727422243122,-544.6,0.00019452,2]
[339267000,1727422243131,-151.0,0.00019452,2]
[339267002,1727422243140,-151.0,0.00019452,2]
[339267004,1727422243153,-151.0,0.00019452,2]
[339267006,1727422243163,-151.0,0.00019452,2]
[339267008,1727422243172,-151.0,0.00019452,2]
[339267010,1727422243182,-1105.35,0.00019452,2]
[339267012,1727422243192,-500.0,0.00019452,2]
[339267014,1727422243201,-1320.5,0.00019452,2]
[339267016,1727422243211,-591.25,0.00019452,2]
[339267018,1727422243220,-491.48,0.00019452,2]
[339267020,1727422243230,-1182.11,0.00019452,2]
[339267022,1727422243239,-534.81,0.00019452,2]
[339267024,1727422243248,-259.09,0.00019452,2]
[339267025,1727422243258,-500.0,0.00019452,2]
[339267027,1727422243268,-508.7841733,0.00019452,2]
[339267029,1727422243278,-500.0,0.00019452,2]
[339267031,1727422243288,-500.0,0.00019452,2]
[339267033,1727422243304,-500.0,0.00019452,2]
[339267035,1727422243315,-500.0,0.00019452,2]
[339267037,1727422243325,-185.3,0.00019452,2]
[339267039,1727422243334,-500.29800051,0.00019452,2]
[339267041,1727422243344,-439.57472982,0.00019452,2]
[339267043,1727422243353,-639.05364127,0.00019452,2]
[339267045,1727422243363,-500.0,0.00019452,2]
[339267047,1727422243372,-500.0,0.00019452,2]
[339267050,1727422243382,-189.93746664,0.00019452,2]
[339267053,1727422243392,-500.0,0.00019452,2]
[339267056,1727422243401,-500.0,0.00019452,2]
[339267060,1727422243411,-295.696888,0.00019452,2]
[339267063,1727422243420,-500.0,0.00019452,2]
[339267066,1727422243429,-295.696888,0.00019452,2]
[339267068,1727422243439,-548.75,0.00019452,2]
[339267070,1727422243448,-4751.17274609,0.00019452,2]
[339267072,1727422243457,-500.0,0.00019452,2]
[339267074,1727422243467,-684.5,0.00019452,2]
[339267076,1727422243476,-269.27,0.00019452,2]
[339267078,1727422243486,-397.29062271,0.00019452,2]
[339267080,1727422243495,-194.33136475,0.00019452,2]
[339267082,1727422243505,-500.0,0.00019452,2]
[339267084,1727422243514,-500.0,0.00019452,2]
[339267094,1727422243679,-344.71093875,0.00019452,2]
[339267095,1727422243689,-500.0,0.00019452,2]
[339267096,1727422243699,-377.7251503,0.00019452,2]
[339267097,1727422243708,-18259.42,0.00019452,2]
[339267098,1727422243717,-1000.0,0.00019452,2]
[339267099,1727422243726,-220.63047378,0.00019452,2]
[339267100,1727422243735,-500.0,0.00019452,2]
[339267101,1727422243745,-510.47063791,0.00019452,2]
[339267102,1727422243754,-3345.55,0.00019452,2]
[339267103,1727422243763,-500.0,0.00019452,2]
[339267105,1727422243773,-500.0,0.00019452,2]
[339267107,1727422243783,-500.0,0.00019452,2]
[339267109,1727422243793,-526.743,0.00019598,2]
[339267111,1727422243803,-9020.886,0.00019598,2]
[339267113,1727422243812,-150.112233,0.000196,2]
[339267115,1727422243822,-420.0,0.00019642,2]
[339267117,1727422243832,-500.0,0.00019693,7]
[339267119,1727422243841,-500.0,0.00019693,7]
[339267121,1727422243851,-500.0,0.00019693,7]
[339267123,1727422243860,-500.0,0.00019693,7]
[339267125,1727422243870,-500.0,0.00019693,7]
[339267127,1727422243879,-500.0,0.00019693,7]
[339267129,1727422243888,-500.0,0.00019693,7]
[339267130,1727422243898,-500.0,0.00019693,7]
[339267131,1727422243907,-500.0,0.00019693,7]
[339267132,1727422243917,-500.0,0.00019693,7]
[339267133,1727422243927,-500.0,0.00019693,7]
[339267134,1727422243936,-168.94,0.00019693,7]
[339267135,1727422243946,-500.0,0.00019693,7]
[339267136,1727422243956,-453.34,0.00019693,7]
[339267137,1727422243965,-500.0,0.00019693,7]
[339267138,1727422243974,-500.0,0.00019693,7]
[339267139,1727422243984,-151.0,0.00019716,2]
[339267140,1727422243994,-259.654181,0.00019716,2]
[339267141,1727422244004,-151.0,0.00019716,2]
[339267142,1727422244013,-259.654181,0.00019716,2]
[339267143,1727422244024,-151.0,0.00019716,2]
[339267144,1727422244033,-151.0,0.00019716,2]
[339267145,1727422244043,-151.0,0.00019716,2]
[339267146,1727422244052,-500.0,0.00019726,2]
[339267147,1727422244061,-2138.35,0.00019726,2]
[339267148,1727422244071,-200.0,0.00019726,2]
[339267150,1727422244080,-500.0,0.00019726,2]
[339267152,1727422244090,-500.0,0.00019726,2]
[339267154,1727422244099,-500.0,0.00019726,2]
[339267156,1727422244113,-1508.71,0.00019726,2]
[339267158,1727422244122,-500.0,0.00019726,2]
[339267160,1727422244132,-544.6,0.00019726,2]
[339267161,1727422244142,-1105.35,0.00019726,2]
[339267163,1727422244155,-500.0,0.00019726,2]
[339267165,1727422244164,-1320.5,0.00019726,2]
[339267167,1727422244174,-591.25,0.00019726,2]
[339267169,1727422244183,-1182.11,0.00019726,2]
[339267170,1727422244193,-579.533932,0.00019726,2]
[339267172,1727422244203,-579.533932,0.00019726,2]
[339267173,1727422244212,-523.03780286,0.00019726,2]
[339267175,1727422244222,-273.31,0.00019726,2]
[339267177,1727422244232,-304.506706,0.00019726,2]
[339267179,1727422244242,-304.506706,0.00019726,2]
[339267180,1727422244252,-365.129402,0.00019726,2]
[339267182,1727422244261,-365.129402,0.00019726,2]
[339267184,1727422244272,-151.0,0.00019726,2]
[339267186,1727422244282,-151.0,0.00019726,2]
[339267188,1727422244292,-151.0,0.00019726,2]
[339267190,1727422244301,-500.0,0.00019726,2]
[339267192,1727422244312,-548.75,0.00019726,2]
[339267194,1727422244322,-500.0,0.00019726,2]
[339267196,1727422244331,-684.5,0.00019726,2]
[339267198,1727422244342,-18259.42,0.00019726,2]
[339267199,1727422244353,-789.87979194,0.00019726,2]
[339267200,1727422244363,-3345.55,0.00019726,2]
[339267201,1727422244373,-500.0,0.00019726,2]
[339267202,1727422244383,-546.54745318,0.00019726,2]
[339267203,1727422244392,-420.0,0.00019802,2]
[339267204,1727422244402,-194.7565949,0.00019863,2]
[339267206,1727422244412,-153.0,0.00019863,2]
[339267208,1727422244421,-153.0,0.00019863,2]
[339267210,1727422244430,-150.112233,0.000199,2]
[339267212,1727422244440,-500.0,0.00019973,2]
[339267214,1727422244450,-500.0,0.00019973,2]
[339267216,1727422244459,-500.13969444,0.00019973,2]
[339267218,1727422244470,-501.14417144,0.00019973,2]
[339267220,1727422244479,-500.0,0.00019973,2]
[339267222,1727422244489,-12275.18448806,0.0001999,2]
[339267223,1727422244498,-309.20853301,0.00019999,2]
[339267225,1727422244507,-408010.13506821,0.0002,2]
[339267238,1727422244650,-65795.99254041,0.0002,2]
[339267240,1727422244660,-500.0,0.0002,2]
[339267242,1727422244669,-2138.35,0.0002,2]
[339267244,1727422244679,-200.0,0.0002,2]
[339267245,1727422244688,-500.0,0.0002,2]
[339267247,1727422244697,-151.0,0.0002,2]
[339267249,1727422244706,-151.0,0.0002,2]
[339267251,1727422244716,-151.0,0.0002,2]
[339267253,1727422244725,-151.0,0.0002,2]
[339267255,1727422244735,-151.0,0.0002,2]
[339267256,1727422244744,-151.0,0.0002,2]
[339267258,1727422244753,-500.0,0.0002,2]
[339267260,1727422244763,-151.0,0.0002,2]
[339267262,1727422244772,-151.0,0.0002,2]
[339267263,1727422244782,-212.022229,0.0002,2]
[339267265,1727422244792,-500.0,0.0002,2]
[339267267,1727422244801,-1508.71,0.0002,2]
[339267269,1727422244811,-151.0,0.0002,2]
[339267271,1727422244820,-174.510976,0.0002,2]
[339267272,1727422244829,-151.0,0.0002,2]
[339267274,1727422244838,-151.0,0.0002,2]
[339267276,1727422244848,-151.0,0.0002,2]
[339267278,1727422244857,-500.0,0.0002,2]
[339267280,1727422244866,-151.0,0.0002,2]
[339267282,1727422244877,-288.544269,0.0002,2]
[339267283,1727422244886,-151.0,0.0002,2]
[339267284,1727422244895,-151.0,0.0002,2]
[339267285,1727422244904,-151.0,0.0002,2]
[339267286,1727422244915,-160.254891,0.0002,2]
[339267287,1727422244925,-160.254891,0.0002,2]
[339267288,1727422244936,-544.6,0.0002,2]
[339267289,1727422244946,-151.0,0.0002,2]
[339267290,1727422244955,-151.0,0.0002,2]
[339267291,1727422244964,-151.0,0.0002,2]
[339267292,1727422244974,-151.0,0.0002,2]
[339267293,1727422244983,-176.2898464,0.0002,2]
[339267294,1727422244992,-151.0,0.0002,2]
[339267295,1727422245001,-151.0,0.0002,2]
[339267296,1727422245011,-1105.35,0.0002,2]
[339267297,1727422245021,-151.0,0.0002,2]
[339267298,1727422245030,-1320.5,0.0002,2]
[339267299,1727422245039,-252.66506,0.0002,2]
[339267300,1727422245049,-252.66506,0.0002,2]
[339267301,1727422245058,-252.66506,0.0002,2]
[339267302,1727422245068,-252.66506,0.0002,2]
[339267303,1727422245078,-591.25,0.0002,2]
[339267304,1727422245088,-1182.11,0.0002,2]
[339267305,1727422245098,-579.533932,0.0002,2]
[339267306,1727422245108,-579.533932,0.0002,2]
[339267307,1727422245117,-304.506706,0.0002,2]
[339267308,1727422245127,-304.506706,0.0002,2]
[339267309,1727422245136,-100192.81776321,0.0002,2]
[339267310,1727422245146,-11857.07355434,0.0002,15]
[339267311,1727422245158,-152.720669,0.0002,2]
[339267312,1727422245168,-365.129402,0.0002,2]
[339267313,1727422245177,-365.129402,0.0002,2]
[339267314,1727422245186,-151.0,0.0002,2]
[339267315,1727422245196,-158.423294,0.0002,2]
[339267316,1727422245205,-267.017827,0.0002,2]
[339267317,1727422245215,-259.654181,0.0002,2]
[339267318,1727422245225,-151.0,0.0002,2]
[339267319,1727422245235,-259.654181,0.0002,2]
[339267320,1727422245244,-500.0,0.0002,2]
[339267321,1727422245254,-151.0,0.0002,2]
[339267322,1727422245264,-295.696888,0.0002,2]
[339267323,1727422245273,-295.696888,0.0002,2]
[339267324,1727422245282,-151.0,0.0002,2]
[339267325,1727422245291,-151.0,0.0002,2]
[339267326,1727422245301,-548.75,0.0002,2]
[339267327,1727422245310,-500.0,0.0002,2]
[339267328,1727422245320,-684.5,0.0002,2]
[339267329,1727422245329,-18259.42,0.0002,2]
[339267330,1727422245338,-3345.55,0.0002,2]
[339267331,1727422245348,-500.0,0.0002,2]
[339267332,1727422245357,-150.112233,0.000202,5]
[339267333,1727422245367,-500.0,0.00020273,2]
[339267334,1727422245376,-2138.35,0.00020273,2]
[339267335,1727422245385,-200.0,0.00020273,2]
[339267336,1727422245394,-500.0,0.00020273,2]
[339267337,1727422245404,-500.0,0.00020273,2]
[339267338,1727422245413,-500.0,0.00020273,2]
[339267339,1727422245423,-1508.71,0.00020273,2]
[339267340,1727422245433,-500.0,0.00020273,2]
[339267341,1727422245443,-544.6,0.00020273,2]
[339267342,1727422245454,-1105.35,0.00020273,2]
[339267343,1727422245464,-1320.5,0.00020273,2]
[339267344,1727422245473,-591.25,0.00020273,2]
[339267345,1727422245483,-1182.11,0.00020273,2]
[339267346,1727422245492,-500.0,0.00020273,2]
[339267347,1727422245501,-548.75,0.00020273,2]
[339267348,1727422245511,-500.0,0.00020273,2]
[339267349,1727422245520,-684.5,0.00020273,2]
[339267350,1727422245530,-18259.42,0.00020273,2]
[339267351,1727422245539,-3345.55,0.00020273,2]
[339267352,1727422245549,-500.0,0.00020273,2]
[339267353,1727422245559,-4375.51223319,0.00020277,2]
[339267354,1727422245568,-146813.0,0.00020377,2]
[339267355,1727422245577,-150.0,0.00020446,2]
[339267357,1727422245586,-465.51288594,0.00020505,2]
[339267359,1727422245596,-1000.0,0.00020521,2]
[339267360,1727422245606,-1000.0,0.00020521,2]
[339267361,1727422245615,-1000.0,0.00020521,2]
[339267362,1727422245624,-500.0,0.00020547,2]
[339267363,1727422245634,-2138.35,0.00020547,2]
[339267364,1727422245643,-200.0,0.00020547,2]
[339267365,1727422245652,-500.0,0.00020547,2]
[339267366,1727422245661,-500.0,0.00020547,2]
[339267367,1727422245671,-500.0,0.00020547,2]
[339267368,1727422245681,-1508.71,0.00020547,2]
[339267369,1727422245691,-500.0,0.00020547,2]
[339267370,1727422245699,-544.6,0.00020547,2]
[339267371,1727422245709,-1105.35,0.00020547,2]
[339267372,1727422245720,-1320.5,0.00020547,2]
[339267373,1727422245730,-591.25,0.00020547,2]
[339267374,1727422245741,-1182.11,0.00020547,2]
[339267375,1727422245750,-500.0,0.00020547,2]
[339267376,1727422245760,-548.75,0.00020547,2]
[339267377,1727422245772,-523.22,0.00020547,2]
[339267378,1727422245782,-684.5,0.00020547,2]
[339267379,1727422245792,-18259.42,0.00020547,2]
[339267381,1727422245802,-3345.55,0.00020547,2]
[339267383,1727422245813,-482.37469278,0.00020547,2]
[339267385,1727422245822,-1186.038702,0.00020548,2]
[339267387,1727422245831,-150.0,0.000206,2]
[339267389,1727422245841,-9602.5888428,0.0002061,2]
[339267391,1727422245850,-11531.83280628,0.0002062,2]
[339267393,1727422245861,-1416.1,0.0002069,2]
[339267395,1727422245870,-204.71326294,0.00020692,2]
[339267397,1727422245880,-3226.36023377,0.00020692,2]
[339267398,1727422245890,-92.31824618,0.00020693,2]
[339267400,1727422245899,-200.4530223,0.000207,2]
[339267402,1727422245909,-259.654181,0.00020777,2]
[339267404,1727422245920,-151.0,0.00020777,2]
[339267406,1727422245930,-259.654181,0.00020777,2]
[339267408,1727422245939,-151.0,0.00020777,2]
[339267409,1727422245949,-151.0,0.00020777,2]
[339267411,1727422245959,-151.0,0.00020777,2]
[339267413,1727422245968,-157.41270457,0.000208,2]
[339267415,1727422245977,-151.0,0.00020811,2]
[339267416,1727422245987,-151.0,0.00020811,2]
[339267418,1727422245996,-151.0,0.00020811,2]
[339267420,1727422246005,-151.0,0.00020811,2]
[339267421,1727422246015,-151.0,0.00020811,2]
[339267423,1727422246024,-154.047577,0.00020811,2]
[339267425,1727422246033,-151.0,0.00020811,2]
[339267426,1727422246042,-151.0,0.0002082,2]
[339267428,1727422246052,-500.0,0.00020821,2]
[339267430,1727422246062,-2138.35,0.00020821,2]
[339267432,1727422246071,-200.0,0.00020821,2]
[339267433,1727422246079,-500.0,0.00020821,2]
[339267435,1727422246089,-500.0,0.00020821,2]
[339267437,1727422246098,-500.0,0.00020821,2]
[339267439,1727422246108,-1508.71,0.00020821,2]
[339267441,1727422246117,-151.0,0.00020821,2]
[339267442,1727422246127,-242.557304,0.00020821,2]
[339267444,1727422246136,-151.0,0.00020821,2]
[339267445,1727422246146,-151.0,0.00020821,2]
[339267447,1727422246158,-500.0,0.00020821,2]
[339267449,1727422246168,-151.0,0.00020821,2]
[339267451,1727422246178,-151.0,0.00020821,2]
[339267453,1727422246187,-160.254891,0.00020821,2]
[339267455,1727422246198,-160.254891,0.00020821,2]
[339267457,1727422246207,-544.6,0.00020821,2]
[339267458,1727422246216,-151.0,0.00020821,2]
[339267460,1727422246226,-151.0,0.00020821,2]
[339267462,1727422246235,-151.0,0.00020821,2]
[339267464,1727422246245,-151.0,0.00020821,2]
[339267466,1727422246255,-268.200306,0.00020821,2]
[339267467,1727422246264,-151.0,0.00020821,2]
[339267469,1727422246274,-1105.35,0.00020821,2]
[339267471,1727422246283,-1320.5,0.00020821,2]
[339267473,1727422246292,-252.66506,0.00020821,2]
[339267475,1727422246302,-252.66506,0.00020821,2]
[339267477,1727422246311,-708.467697,0.00020821,2]
[339267479,1727422246320,-591.25,0.00020821,2]
[339267480,1727422246330,-1182.11,0.00020821,2]
[339267482,1727422246340,-579.533932,0.00020821,2]
[339267484,1727422246350,-579.533932,0.00020821,2]
[339267486,1727422246359,-304.506706,0.00020821,2]
[339267487,1727422246368,-304.506706,0.00020821,2]
[339267488,1727422246377,-365.129402,0.00020821,2]
[339267489,1727422246386,-365.129402,0.00020821,2]
[339267490,1727422246501,-151.0,0.00020821,2]
[339267491,1727422246512,-500.0,0.00020821,2]
[339267492,1727422246521,-295.696888,0.00020821,2]
[339267493,1727422246531,-295.696888,0.00020821,2]
[339267494,1727422246540,-548.75,0.00020821,2]
[339267495,1727422246557,-684.5,0.00020821,2]
[339267496,1727422246567,-18259.42,0.00020821,2]
[339267497,1727422246576,-3345.55,0.00020821,2]
[339267498,1727422246586,-159.654838,0.00020878,2]
[339267499,1727422246595,-251.237435,0.00020878,2]
[339267500,1727422246604,-3000.0,0.000209,2]
[339267501,1727422246614,-152.79482226,0.00020902,2]
[339267502,1727422246623,-429.9175038,0.00020941,2]
[339267503,1727422246632,-212.608922,0.0002099,2]
[339267504,1727422246642,-212.608922,0.0002099,2]
[339267505,1727422246651,-151.0,0.0002099,2]
[339267506,1727422246660,-151.0,0.0002099,2]
[339267507,1727422246669,-151.0,0.0002099,2]
[339267508,1727422246678,-214.394019,0.0002099,2]
[339267509,1727422246688,-171.043936,0.0002099,2]
[339267510,1727422246697,-4996.49053934,0.00021,5]
[339267511,1727422246707,-1456.17077785,0.00021,30]
[339267512,1727422246716,-2270.53136612,0.00021,4]
[339267513,1727422246725,-500.0,0.00021,30]
[339267514,1727422246735,-500.0,0.00021,30]
[339267515,1727422246745,-800.0,0.00021,30]
[339267516,1727422246754,-500.0,0.00021,30]
[339267517,1727422246763,-500.0,0.00021,30]
[339267518,1727422246773,-500.0,0.00021,30]
[339267519,1727422246784,-500.0,0.00021,30]
[339267520,1727422246793,-500.0,0.00021,30]
[339267521,1727422246803,-500.0,0.00021,30]
[339267522,1727422246812,-501.80833123,0.00021,30]
[339267523,1727422246821,-500.0,0.00021,30]
[339267524,1727422246830,-500.0,0.00021,30]
[339267525,1727422246839,-500.0,0.00021,30]
[339267526,1727422246848,-500.0,0.00021,30]
[339267527,1727422246858,-500.0,0.00021,30]
[339267528,1727422246867,-500.0,0.00021,30]
[339267529,1727422246877,-734.20927279,0.00021,30]
[339267530,1727422246886,-500.0,0.00021,30]
[339267531,1727422246895,-500.0,0.00021,30]
[339267532,1727422246905,-500.0,0.00021,30]
[339267533,1727422246914,-510.77584455,0.00021,30]
[339267534,1727422246924,-500.0,0.00021,30]
[339267535,1727422246933,-500.0,0.00021,30]
[339267536,1727422246943,-500.0,0.00021,30]
[339267537,1727422246952,-500.0,0.00021,30]
[339267538,1727422246961,-500.0,0.00021,30]
[339267539,1727422246970,-500.0,0.00021,30]
[339267540,1727422246979,-500.0,0.00021,30]
[339267541,1727422246989,-500.0,0.00021,30]
[339267542,1727422246998,-611.65859393,0.00021,30]
[339267543,1727422247007,-500.0,0.00021,30]
[339267544,1727422247016,-882.01871696,0.00021,30]
[339267545,1727422247025,-500.0,0.00021,30]
[339267546,1727422247034,-500.0,0.00021,30]
[339267547,1727422247044,-500.0,0.00021,30]
[339267548,1727422247066,-500.0,0.00021,30]
[339267549,1727422247076,-500.0,0.00021,30]
[339267550,1727422247085,-500.0,0.00021,30]
[339267551,1727422247095,-500.0,0.00021,30]
[339267552,1727422247105,-500.0,0.00021,30]
[339267553,1727422247113,-500.0,0.00021,30]
[339267554,1727422247122,-500.0,0.00021,30]
[339267555,1727422247131,-600.0,0.00021,30]
[339267556,1727422247141,-500.0,0.00021,30]
[339267557,1727422247153,-500.0,0.00021,30]
[339267558,1727422247162,-500.0,0.00021,30]
[339267559,1727422247171,-500.0,0.00021,30]
[339267560,1727422247180,-500.0,0.00021,30]
[339267561,1727422247188,-500.0,0.00021,30]
[339267562,1727422247197,-500.0,0.00021,30]
[339267563,1727422247206,-500.0,0.00021,30]
[339267564,1727422247215,-500.0,0.00021,30]
[339267565,1727422247225,-500.0,0.00021,30]
[339267566,1727422247234,-500.0,0.00021,30]
[339267567,1727422247244,-900.0,0.00021,30]
[339267568,1727422247253,-500.0,0.00021,30]
[339267569,1727422247277,-500.0,0.00021,30]
[339267570,1727422247286,-500.0,0.00021,30]
[339267571,1727422247298,-607.21200268,0.00021,30]
[339267572,1727422247307,-500.0,0.00021,30]
[339267573,1727422247316,-500.0,0.00021,30]
[339267574,1727422247326,-500.0,0.00021,30]
[339267575,1727422247335,-500.0,0.00021,30]
[339267576,1727422247345,-500.0,0.00021,30]
[339267577,1727422247355,-500.0,0.00021,30]
[339267578,1727422247364,-500.0,0.00021,30]
[339267579,1727422247373,-675.71650789,0.00021,30]
[339267580,1727422247382,-500.0,0.00021,30]
[339267581,1727422247392,-500.0,0.00021,30]
[339267582,1727422247401,-500.0,0.00021,30]
[339267583,1727422247411,-500.0,0.00021,30]
[339267584,1727422247420,-500.0,0.00021,30]
[339267585,1727422247430,-500.0,0.00021,30]
[339267586,1727422247439,-500.0,0.00021,30]
[339267587,1727422247449,-500.0,0.00021,30]
[339267588,1727422247459,-800.0,0.00021,30]
[339267589,1727422247468,-500.0,0.00021,30]
[339267590,1727422247478,-805.87430767,0.00021,30]
[339267591,1727422247487,-500.0,0.00021,30]
[339267592,1727422247497,-500.0,0.00021,30]
[339267593,1727422247506,-500.0,0.00021,30]
[339267594,1727422247516,-500.0,0.00021,30]
[339267595,1727422247525,-500.0,0.00021,30]
[339267596,1727422247534,-500.0,0.00021,30]
[339267597,1727422247544,-500.0,0.00021,30]
[339267598,1727422247555,-500.0,0.00021,30]
[339267599,1727422247564,-500.0,0.00021,30]
[339267600,1727422247573,-500.0,0.00021,30]
[339267601,1727422247583,-631.02725656,0.00021,30]
[339267602,1727422247593,-880.0,0.00021,15]
[339267603,1727422247603,-1000.0,0.00021,21]
[339267604,1727422247613,-212.608922,0.00021,2]
[339267605,1727422247623,-212.608922,0.00021,2]
[339267606,1727422247632,-36533.0,0.00021,2]
[339267607,1727422247641,-3000.0,0.00021,2]
[339267608,1727422247650,-151.0,0.00021,2]
[339267609,1727422247659,-151.0,0.00021,2]
[339267610,1727422247668,-151.0,0.00021,2]
[339267611,1727422247678,-151.0,0.00021,2]
[339267612,1727422247687,-258.68475,0.00021,2]
[339267613,1727422247697,-160.254891,0.00021,2]
[339267614,1727422247706,-160.254891,0.00021,2]
[339267615,1727422247716,-151.0,0.00021,2]
[339267616,1727422247725,-151.0,0.00021,2]
[339267617,1727422247735,-151.0,0.00021,2]
[339267618,1727422247744,-151.0,0.00021,2]
[339267619,1727422247753,-151.0,0.00021,2]
[339267620,1727422247763,-252.66506,0.00021,2]
[339267621,1727422247772,-252.66506,0.00021,2]
[339267622,1727422247782,-708.467697,0.00021,2]
[339267623,1727422247792,-579.533932,0.00021,2]
[339267624,1727422247804,-579.533932,0.00021,2]
[339267625,1727422247814,-304.506706,0.00021,2]
[339267626,1727422247823,-304.506706,0.00021,2]
[339267627,1727422247832,-56239.94619887,0.00021,5]
[339267628,1727422247842,-365.129402,0.00021,2]
[339267629,1727422247851,-365.129402,0.00021,2]
[339267630,1727422247860,-151.0,0.00021,2]
[339267631,1727422247869,-259.654181,0.00021,2]
[339267632,1727422247879,-151.0,0.00021,2]
[339267633,1727422247889,-259.654181,0.00021,2]
[339267634,1727422247899,-151.0,0.00021,2]
[339267635,1727422247909,-295.696888,0.00021,2]
[339267636,1727422247919,-295.696888,0.00021,2]
[339267637,1727422247929,-151.0,0.00021,2]
[339267638,1727422247938,-151.0,0.00021,2]
[339267639,1727422247948,-43.82922215,0.00021,30]
[339267640,1727422247958,-500.0,0.00021,30]
[339267641,1727422247967,-500.0,0.00021,30]
[339267642,1727422247976,-500.0,0.00021,30]
[339267643,1727422247985,-500.0,0.00021,30]
[339267644,1727422247994,-500.0,0.00021,30]
[339267645,1727422248004,-500.0,0.00021,30]
[339267646,1727422248014,-500.0,0.00021,30]
[339267647,1727422248024,-500.0,0.00021,30]
[339267648,1727422248033,-500.0,0.00021,30]
[339267649,1727422248042,-500.0,0.00021,30]
[339267650,1727422248054,-500.0,0.00021,30]
[339267651,1727422248063,-500.0,0.00021,30]
[339267652,1727422248073,-500.0,0.00021,30]
[339267653,1727422248083,-500.0,0.00021,30]
[339267654,1727422248092,-500.0,0.00021,30]
[339267655,1727422248103,-500.0,0.00021,30]
[339267656,1727422248114,-500.0,0.00021,30]
[339267657,1727422248130,-500.0,0.00021,30]
[339267658,1727422248145,-500.0,0.00021,30]
[339267659,1727422248159,-276.8824371,0.00021,30]
[339267660,1727422248169,-500.0,0.00021,30]
[339267661,1727422248179,-500.0,0.00021,30]
[339267662,1727422248189,-500.0,0.00021,30]
[339267663,1727422248198,-500.0,0.00021,30]
[339267664,1727422248208,-500.0,0.00021,30]
[339267665,1727422248217,-500.0,0.00021,30]
[339267666,1727422248227,-500.0,0.00021,30]
[339267667,1727422248236,-499.3,0.00021,30]
[339267668,1727422248247,-500.0,0.00021,30]
[339267669,1727422248256,-508.1342584,0.00021,30]
[339267670,1727422248266,-500.0,0.00021,30]
[339267671,1727422248276,-500.0,0.00021,30]
[339267672,1727422248285,-500.0,0.00021,30]
[339267673,1727422248295,-500.0,0.00021,30]
[339267674,1727422248305,-500.0,0.00021,30]
[339267675,1727422248315,-500.0,0.00021,30]
[339267676,1727422248325,-559.82866608,0.00021,30]
[339267677,1727422248335,-500.0,0.00021,30]
[339267678,1727422248344,-500.0,0.00021,30]
[339267679,1727422248354,-500.0,0.00021,30]
[339267680,1727422248364,-500.0,0.00021,30]